fUSD/lending_fUSD_20250201
["ID","MTS","AMOUNT","RATE_DAILY","PERIOD"]
[351174080,1738391440359,-150.0,0.00017113,2]
[351174081,1738391440368,-150.0,0.00017126,2]
[351174082,1738391440380,-150.0,0.00017448,2]
[351174083,1738391440389,-150.0,0.00017468,2]
[351174084,1738391440398,-431.89996361,0.00017733,2]
[351174085,1738391440408,-500.0,0.00017733,2]
[351174086,1738391440417,-479.67166864,0.00017733,2]
[351174087,1738391440427,-500.0,0.00017733,2]
[351174088,1738391440436,-500.0,0.00017733,2]
[351174089,1738391440445,-647.39992283,0.00017733,2]
[351174090,1738391440454,-500.0,0.00017733,2]
[351174091,1738391440464,-500.0,0.00017733,2]
[351174092,1738391440473,-741.79,0.00017733,2]
[351174093,1738391440483,-500.0,0.00017733,2]
[351174094,1738391440493,-500.0,0.00017733,2]
[351174095,1738391440502,-500.0,0.00017733,2]
[351174096,1738391440512,-713.16,0.00017733,2]
[351174097,1738391440521,-500.0,0.00017733,2]
[351174098,1738391440531,-500.0,0.00017733,2]
[351174099,1738391440539,-500.0,0.00017733,2]
[351174100,1738391440549,-500.0,0.00017733,2]
[351174101,1738391440562,-638.12089137,0.00017733,2]
[351174102,1738391440571,-500.0,0.00017733,2]
[351174103,1738391440581,-500.0,0.00017733,2]
[351174104,1738391440590,-687.1,0.00017733,2]
[351174105,1738391440601,-500.0,0.00017733,2]
[351174106,1738391440610,-780.98,0.00017733,2]
[351174107,1738391440621,-500.0,0.00017733,2]
[351174108,1738391440632,-500.0,0.00017733,2]
[351174109,1738391440642,-500.0,0.00017733,2]
[351174110,1738391440651,-500.0,0.00017733,2]
[351174111,1738391440660,-500.0,0.00017733,2]
[351174112,1738391440670,-500.0,0.00017733,2]
[351174113,1738391440679,-644.84253919,0.00017733,2]
[351174114,1738391440689,-500.0,0.00017733,2]
[351174115,1738391440698,-500.0,0.00017733,2]
[351174116,1738391440708,-500.0,0.00017733,2]
[351174117,1738391440718,-500.0,0.00017733,2]
[351174118,1738391440728,-710.45,0.00017733,2]
[351174119,1738391440739,-500.0,0.00017733,2]
[351174120,1738391440749,-500.0,0.00017733,2]
[351174121,1738391440759,-500.0,0.00017733,2]
[351174122,1738391440773,-514.77274158,0.00017733,2]
[351174123,1738391440782,-500.0,0.00017733,2]
[351174124,1738391440791,-500.0,0.00017733,2]
[351174125,1738391440801,-812.3,0.00017733,2]
[351174126,1738391440810,-500.0,0.00017733,2]
[351174127,1738391440820,-500.0,0.00017733,2]
[351174128,1738391440833,-500.0,0.00017733,2]
[351174129,1738391440849,-500.0,0.00017733,2]
[351174130,1738391440862,-241.90776073,0.00017733,2]
[351174131,1738391440875,-500.0,0.00017733,2]
[351174132,1738391440889,-500.0,0.00017733,2]
[351174133,1738391440904,-500.0,0.00017733,2]
[351174134,1738391440918,-500.0,0.00017733,2]
[351174135,1738391440931,-500.0,0.00017733,2]
[351174136,1738391440942,-452.24472948,0.00017733,2]
[351174137,1738391440955,-500.0,0.00017733,2]
[351174138,1738391440968,-500.0,0.00017733,2]
[351174139,1738391440982,-500.0,0.00017733,2]
[351174140,1738391440996,-500.0,0.00017733,2]
[351174141,1738391441010,-526.08,0.00017733,2]
[351174142,1738391441023,-500.0,0.00017733,2]
[351174143,1738391441038,-500.0,0.00017733,2]
[351174144,1738391441051,-500.0,0.00017733,2]
[351174145,1738391441065,-845.43,0.00017733,2]
[351174146,1738391441079,-831.88,0.00017733,2]
[351174147,1738391441093,-678.55,0.00017733,2]
[351174148,1738391441107,-500.0,0.00017733,2]
[351174149,1738391441121,-500.0,0.00017733,2]
[351174150,1738391441133,-637.01,0.00017733,2]
[351174151,1738391441145,-500.0,0.00017733,2]
[351174152,1738391441157,-500.0,0.00017733,2]
[351174153,1738391441173,-854.59,0.00017733,2]
[351174154,1738391441183,-574.75,0.00017733,2]
[351174155,1738391441194,-710.53,0.00017733,2]
[351174156,1738391441206,-500.0,0.00017733,2]
[351174157,1738391441220,-632.79,0.00017733,2]
[351174158,1738391441233,-500.0,0.00017733,2]
[351174159,1738391441245,-634.0423616,0.00017733,2]
[351174160,1738391441259,-500.0,0.00017733,2]
[351174161,1738391441282,-500.0,0.00017733,2]
[351174162,1738391441297,-500.0,0.00017733,2]
[351174163,1738391441310,-500.0,0.00017733,2]
[351174164,1738391441321,-500.0,0.00017733,2]
[351174165,1738391441333,-500.0,0.00017733,2]
[351174166,1738391441345,-500.0,0.00017733,2]
[351174167,1738391441357,-551.99,0.00017733,2]
[351174168,1738391441369,-527.22,0.00017733,2]
[351174169,1738391441382,-649.17,0.00017733,2]
[351174170,1738391441394,-500.0,0.00017733,2]
[351174171,1738391441406,-715.69,0.00017733,2]
[351174172,1738391441418,-500.0,0.00017733,2]
[351174173,1738391441430,-500.0,0.00017733,2]
[351174174,1738391441442,-797.92,0.00017733,2]
[351174175,1738391441454,-520.25,0.00017733,2]
[351174176,1738391441465,-993.51,0.00017733,2]
[351174177,1738391441477,-500.0,0.00017733,2]
[351174178,1738391441488,-984.86,0.00017733,2]
[351174179,1738391441501,-1036.56,0.00017733,2]
[351174180,1738391441513,-749.17,0.00017733,2]
[351174181,1738391441525,-2830.38,0.00017733,2]
[351174182,1738391441537,-3698.73,0.00017733,2]
[351174183,1738391441549,-8000.6,0.00017733,2]
[351174184,1738391441565,-500.0,0.00017733,2]
[351174185,1738391441577,-500.0,0.00017733,2]
[351174186,1738391441589,-500.0,0.00017733,2]
[351174187,1738391441603,-1020.2,0.00017733,2]
[351174188,1738391441615,-926.3,0.00017733,2]
[351174189,1738391441628,-818.33036657,0.00017733,2]
[351174190,1738391441646,-151.80963343,0.00017733,2]
[351174191,1738391441658,-213.97586672,0.00017733,2]
[351174192,1738391441720,-150.0,0.00017326,2]
[351174193,1738391441733,-150.0,0.00017601,2]
[351174194,1738391441747,-1070.28364563,0.00017733,2]
[351174195,1738391441763,-536.40048765,0.00017733,2]
[351174196,1738391441775,-2939.64158508,0.00017733,2]
[351174197,1738391441791,-128.40841492,0.00017733,2]
[351174198,1738391441803,-839.34300525,0.00017733,2]
[351174203,1738391446096,-372.24,0.00016969,2]
[351174204,1738391446106,-36.11146807,0.00017334,2]
[351174205,1738391446117,-113.88853193,0.00017334,2]
[351174206,1738391446127,-500.0,0.00017732,2]
[351174207,1738391446137,-1292.08,0.00017732,2]
[351174208,1738391446147,-993.37,0.00017732,2]
[351174209,1738391446157,-2202.00699475,0.00017733,2]
[351174210,1738391446166,-500.0,0.00017733,2]
[351174211,1738391446176,-1220.76,0.00017733,2]
[351174212,1738391446185,-2957.64,0.00017733,2]
[351174213,1738391446194,-500.0,0.00017733,2]
[351174214,1738391446203,-2471.05,0.00017733,2]
[351174215,1738391446212,-678.36,0.00017733,2]
[351174216,1738391446221,-548.42,0.00017733,2]
[351174217,1738391446231,-500.0,0.00017733,2]
[351174218,1738391446240,-3061.32,0.00017733,2]
[351174219,1738391446250,-2762.79,0.00017733,2]
[351174220,1738391446259,-500.0,0.00017733,2]
[351174221,1738391446269,-1066.18,0.00017733,2]
[351174222,1738391446278,-1950.12,0.00017733,2]
[351174223,1738391446288,-505.83,0.00017733,2]
[351174224,1738391446297,-2363.69,0.00017733,2]
[351174225,1738391446307,-833.75,0.00017733,2]
[351174226,1738391446316,-849.52,0.00017733,2]
[351174227,1738391446326,-500.0,0.00017733,2]
[351174228,1738391446336,-2291.24,0.00017733,2]
[351174229,1738391446345,-2269.48,0.00017733,2]
[351174230,1738391446355,-953.42,0.00017733,2]
[351174231,1738391446365,-500.0,0.00017733,2]
[351174232,1738391446375,-1330.12,0.00017733,2]
[351174233,1738391446384,-500.0,0.00017733,2]
[351174234,1738391446394,-500.0,0.00017733,2]
[351174235,1738391446403,-1606.42,0.00017733,2]
[351174236,1738391446412,-500.0,0.00017733,2]
[351174237,1738391446422,-500.0,0.00017733,2]
[351174238,1738391446433,-2626.62,0.00017733,2]
[351174239,1738391446442,-500.0,0.00017733,2]
[351174240,1738391446451,-1769.61,0.00017733,2]
[351174241,1738391446462,-734.33,0.00017733,2]
[351174242,1738391446471,-1346.07,0.00017733,2]
[351174243,1738391446481,-532.97,0.00017733,2]
[351174244,1738391446491,-346.05947923,0.00017733,2]
[351174245,1738391446502,-549.48,0.00017733,2]
[351174246,1738391446513,-885.36,0.00017733,2]
[351174247,1738391446522,-507.48795941,0.00017733,2]
[351174248,1738391446532,-1000.0,0.00017733,2]
[351174249,1738391446541,-664.04,0.00017733,2]
[351174250,1738391446551,-926.44,0.00017733,2]
[351174251,1738391446563,-590.46229094,0.00017733,2]
[351174252,1738391446573,-830.32,0.00017733,2]
[351174253,1738391446582,-1634.18,0.00017733,2]
[351174254,1738391446592,-219.08940177,0.00017733,2]
[351174255,1738391446602,-963.38,0.00017733,2]
[351174256,1738391446612,-500.0,0.00017733,2]
[351174257,1738391446621,-592.96,0.00017733,2]
[351174258,1738391446631,-1337.13,0.00017733,2]
[351174259,1738391446640,-1278.88,0.00017733,2]
[351174261,1738391446650,-500.0,0.00017733,2]
[351174262,1738391446660,-501.48,0.00017733,2]
[351174263,1738391446669,-1026.14,0.00017733,2]
[351174264,1738391446679,-2826.77,0.00017733,2]
[351174265,1738391446688,-500.0,0.00017733,2]
[351174266,1738391446698,-500.0,0.00017733,2]
[351174267,1738391446708,-1286.92,0.00017733,2]
[351174268,1738391446718,-2001.36,0.00017733,2]
[351174269,1738391446727,-500.0,0.00017733,2]
[351174270,1738391446737,-723.05,0.00017733,2]
[351174271,1738391446749,-1174.66,0.00017733,2]
[351174272,1738391446758,-500.0,0.00017733,2]
[351174273,1738391446769,-500.0,0.00017733,2]
[351174274,1738391446779,-1477.84,0.00017733,2]
[351174275,1738391446788,-500.0,0.00017733,2]
[351174276,1738391446799,-832.1,0.00017733,2]
[351174277,1738391446808,-528.4,0.00017733,2]
[351174278,1738391446818,-992.53,0.00017733,2]
[351174279,1738391446827,-500.0,0.00017733,2]
[351174280,1738391446837,-500.0,0.00017733,2]
[351174281,1738391446846,-500.0,0.00017733,2]
[351174282,1738391446856,-555.80197101,0.00017733,2]
[351174283,1738391446865,-664.84,0.00017733,2]
[351174284,1738391446876,-667.13,0.00017733,2]
[351174285,1738391446885,-500.0,0.00017733,2]
[351174286,1738391446895,-869.84,0.00017733,2]
[351174287,1738391446904,-1123.24,0.00017733,2]
[351174288,1738391446914,-500.0,0.00017733,2]
[351174289,1738391446923,-500.0,0.00017733,2]
[351174290,1738391446933,-1428.98,0.00017733,2]
[351174291,1738391446943,-528.80138316,0.00017733,2]
[351174292,1738391446953,-500.0,0.00017733,2]
[351174293,1738391446964,-700.44,0.00017733,2]
[351174294,1738391446974,-1435.58,0.00017733,2]
[351174295,1738391446983,-500.0,0.00017733,2]
[351174296,1738391446993,-150.0,0.00017733,2]
[351174297,1738391447004,-306.49143914,0.00017733,2]
[351174298,1738391447013,-500.0,0.00017733,2]
[351174299,1738391447022,-368.96,0.00017734,2]
[351174300,1738391447031,-508.94366116,0.00017734,2]
[351174301,1738391447040,-515.05881239,0.00017734,2]
[351174302,1738391447050,-500.0,0.00017734,2]
[351174303,1738391447059,-500.0,0.00017734,2]
[351174304,1738391447068,-500.0,0.00017734,2]
[351174305,1738391447078,-206.56146733,0.00017734,2]
[351174306,1738391447087,-500.0,0.00017734,2]
[351174307,1738391447097,-500.0,0.00017734,2]
[351174308,1738391447106,-500.0,0.00017734,2]
[351174309,1738391447116,-624.16,0.00017734,2]
[351174310,1738391447125,-500.0,0.00017734,2]
[351174311,1738391447135,-500.0,0.00017734,2]
[351174312,1738391447144,-339.46971813,0.00017734,2]
[351174313,1738391447154,-500.0,0.00017734,2]
[351174314,1738391447164,-500.0,0.00017734,2]
[351174315,1738391447173,-500.0,0.00017734,2]
[351174316,1738391447183,-500.0,0.00017734,2]
[351174317,1738391447192,-515.57522134,0.00017734,2]
[351174318,1738391447201,-500.0,0.00017734,2]
[351174319,1738391447211,-571.97501534,0.00017734,2]
[351174320,1738391447220,-518.53174294,0.00017734,2]
[351174321,1738391447230,-500.0,0.00017734,2]
[351174322,1738391447240,-500.0,0.00017734,2]
[351174323,1738391447250,-500.0,0.00017734,2]
[351174324,1738391447259,-500.0,0.00017734,2]
[351174325,1738391447269,-500.0,0.00017734,2]
[351174326,1738391447279,-500.0,0.00017734,2]
[351174327,1738391447290,-500.0,0.00017734,2]
[351174328,1738391447300,-500.0,0.00017734,2]
[351174329,1738391447310,-504.42171177,0.00017734,2]
[351174330,1738391447320,-500.0,0.00017734,2]
[351174331,1738391447331,-500.0,0.00017734,2]
[351174332,1738391447341,-500.0,0.00017734,2]
[351174333,1738391447350,-500.0,0.00017734,2]
[351174334,1738391447360,-500.0,0.00017734,2]
[351174335,1738391447370,-500.0,0.00017734,2]
[351174336,1738391447381,-500.0,0.00017734,2]
[351174337,1738391447391,-992.11,0.00017734,2]
[351174338,1738391447401,-583.01,0.00017734,2]
[351174339,1738391447411,-396.01866342,0.0001774,2]
[351174340,1738391447421,-500.0,0.0001774,2]
[351174341,1738391447431,-500.0,0.0001774,2]
[351174342,1738391447440,-500.0,0.0001774,2]
[351174343,1738391447450,-500.0,0.0001774,2]
[351174344,1738391447459,-189.41276843,0.0001774,2]
[351174345,1738391447468,-500.0,0.0001774,2]
[351174346,1738391447478,-500.0,0.0001774,2]
[351174347,1738391447488,-530.5,0.0001774,2]
[351174348,1738391447499,-390.05864919,0.0001774,2]
[351174349,1738391447509,-500.0,0.0001774,2]
[351174350,1738391447519,-500.0,0.0001774,2]
[351174351,1738391447528,-500.0,0.0001774,2]
[351174352,1738391447538,-500.0,0.0001774,2]
[351174353,1738391447548,-500.0,0.0001774,2]
[351174354,1738391447559,-500.0,0.0001774,2]
[351174355,1738391447570,-500.0,0.0001774,2]
[351174356,1738391447580,-500.0,0.0001774,2]
[351174357,1738391447590,-500.0,0.0001774,2]
[351174358,1738391447601,-208.79,0.0001774,2]
[351174359,1738391447611,-500.0,0.0001774,2]
[351174360,1738391447621,-323.05039595,0.0001774,2]
[351174361,1738391447630,-500.0,0.0001774,2]
[351174362,1738391447640,-500.0,0.0001774,2]
[351174363,1738391447650,-500.0,0.0001774,2]
[351174364,1738391447659,-500.0,0.0001774,2]
[351174365,1738391447669,-500.0,0.0001774,2]
[351174366,1738391447678,-500.0,0.0001774,2]
[351174367,1738391447687,-500.0,0.0001774,2]
[351174368,1738391447697,-500.0,0.0001774,2]
[351174369,1738391447707,-500.0,0.0001774,2]
[351174370,1738391447717,-500.0,0.0001774,2]
[351174371,1738391447727,-500.0,0.0001774,2]
[351174372,1738391447737,-500.0,0.0001774,2]
[351174373,1738391447747,-500.0,0.0001774,2]
[351174374,1738391447756,-500.0,0.0001774,2]
[351174375,1738391447765,-500.0,0.0001774,2]
[351174376,1738391447775,-500.0,0.0001774,2]
[351174377,1738391447785,-500.0,0.0001774,2]
[351174378,1738391447795,-500.0,0.0001774,2]
[351174379,1738391447804,-500.0,0.0001774,2]
[351174380,1738391447814,-500.0,0.0001774,2]
[351174381,1738391447823,-431.62417931,0.0001774,2]
[351174382,1738391447832,-500.0,0.0001774,2]
[351174383,1738391447842,-500.0,0.0001774,2]
[351174384,1738391447851,-500.0,0.0001774,2]
[351174385,1738391447861,-500.0,0.0001774,2]
[351174386,1738391447870,-500.0,0.0001774,2]
[351174387,1738391447879,-500.0,0.0001774,2]
[351174388,1738391447889,-500.0,0.0001774,2]
[351174389,1738391447899,-500.0,0.0001774,2]
[351174390,1738391447908,-500.0,0.0001774,2]
[351174391,1738391447917,-229.08296428,0.0001774,2]
[351174392,1738391447927,-500.0,0.0001774,2]
[351174393,1738391447936,-500.0,0.0001774,2]
[351174394,1738391447946,-500.0,0.0001774,2]
[351174395,1738391447955,-500.0,0.0001774,2]
[351174396,1738391447964,-500.0,0.0001774,2]
[351174397,1738391447974,-500.0,0.0001774,2]
[351174398,1738391447983,-500.0,0.0001774,2]
[351174399,1738391447994,-500.0,0.0001774,2]
[351174400,1738391448003,-543.28775482,0.0001774,2]
[351174401,1738391448013,-500.0,0.0001774,2]
[351174402,1738391448022,-500.0,0.0001774,2]
[351174403,1738391448031,-500.0,0.0001774,2]
[351174404,1738391448041,-500.0,0.0001774,2]
[351174405,1738391448050,-500.0,0.0001774,2]
[351174406,1738391448059,-500.0,0.0001774,2]
[351174407,1738391448069,-522.94169739,0.0001774,2]
[351174408,1738391448079,-500.0,0.0001774,2]
[351174409,1738391448091,-500.0,0.0001774,2]
[351174410,1738391448107,-500.0,0.0001774,2]
[351174411,1738391448117,-500.0,0.0001774,2]
[351174412,1738391448127,-500.0,0.0001774,2]
[351174413,1738391448137,-500.0,0.0001774,2]
[351174414,1738391448147,-500.0,0.0001774,2]
[351174415,1738391448156,-500.0,0.0001774,2]
[351174416,1738391448165,-520.7697533,0.0001774,2]
[351174417,1738391448174,-500.0,0.0001774,2]
[351174418,1738391448183,-500.0,0.0001774,2]
[351174419,1738391448193,-500.0,0.0001774,2]
[351174420,1738391448202,-500.0,0.0001774,2]
[351174421,1738391448212,-500.0,0.0001774,2]
[351174422,1738391448221,-500.0,0.0001774,2]
[351174423,1738391448231,-500.0,0.0001774,2]
[351174424,1738391448239,-500.0,0.0001774,2]
[351174425,1738391448249,-304.20768346,0.0001774,2]
[351174426,1738391448258,-500.0,0.0001774,2]
[351174427,1738391448267,-500.0,0.0001774,2]
[351174428,1738391448276,-500.0,0.0001774,2]
[351174429,1738391448285,-500.0,0.0001774,2]
[351174430,1738391448294,-1260.53,0.0001774,2]
[351174431,1738391448304,-545.13364548,0.0001774,2]
[351174432,1738391448314,-500.0,0.0001774,2]
[351174433,1738391448323,-500.0,0.0001774,2]
[351174434,1738391448332,-500.0,0.0001774,2]
[351174435,1738391448341,-500.0,0.0001774,2]
[351174436,1738391448351,-500.0,0.0001774,2]
[351174437,1738391448360,-500.0,0.0001774,2]
[351174438,1738391448369,-490.90067401,0.0001774,2]
[351174439,1738391448379,-500.0,0.0001774,2]
[351174440,1738391448388,-500.0,0.0001774,2]
[351174441,1738391448397,-500.0,0.0001774,2]
[351174442,1738391448407,-526.18,0.0001774,2]
[351174443,1738391448417,-586.90938239,0.0001774,2]
[351174444,1738391448426,-500.0,0.0001774,2]
[351174445,1738391448435,-500.0,0.0001774,2]
[351174446,1738391448445,-500.0,0.0001774,2]
[351174447,1738391448455,-500.0,0.0001774,2]
[351174448,1738391448464,-500.0,0.0001774,2]
[351174449,1738391448473,-500.0,0.0001774,2]
[351174450,1738391448483,-500.0,0.0001774,2]
[351174451,1738391448492,-500.0,0.0001774,2]
[351174452,1738391448503,-500.0,0.0001774,2]
[351174453,1738391448515,-500.0,0.0001774,2]
[351174454,1738391448524,-500.0,0.0001774,2]
[351174455,1738391448534,-500.0,0.0001774,2]
[351174456,1738391448543,-500.0,0.0001774,2]
[351174457,1738391448552,-564.35805191,0.0001774,2]
[351174458,1738391448565,-500.0,0.0001774,2]
[351174459,1738391448574,-500.0,0.0001774,2]
[351174460,1738391448728,-500.0,0.0001774,2]
[351174461,1738391448738,-500.0,0.0001774,2]
[351174462,1738391448749,-500.0,0.0001774,2]
[351174463,1738391448758,-500.0,0.0001774,2]
[351174464,1738391448767,-500.0,0.0001774,2]
[351174465,1738391448777,-500.0,0.0001774,2]
[351174466,1738391448786,-500.0,0.0001774,2]
[351174467,1738391448796,-500.0,0.0001774,2]
[351174468,1738391448805,-500.0,0.0001774,2]
[351174469,1738391448815,-500.0,0.0001774,2]
[351174470,1738391448824,-500.0,0.0001774,2]
[351174471,1738391448834,-204.36657048,0.0001774,2]
[351174472,1738391448843,-500.0,0.0001774,2]
[351174473,1738391448853,-348.51431425,0.0001774,2]
[351174474,1738391448862,-500.0,0.0001774,2]
[351174475,1738391448872,-596.87772019,0.0001774,2]
[351174476,1738391448881,-500.0,0.0001774,2]
[351174477,1738391448891,-230.8014177,0.0001774,2]
[351174478,1738391448901,-500.0,0.0001774,2]
[351174479,1738391448911,-500.0,0.0001774,2]
[351174480,1738391448920,-500.0,0.0001774,2]
[351174481,1738391448930,-500.0,0.0001774,2]
[351174482,1738391448940,-500.0,0.0001774,2]
[351174483,1738391448949,-500.0,0.0001774,2]
[351174484,1738391448958,-500.0,0.0001774,2]
[351174485,1738391448968,-500.0,0.0001774,2]
[351174486,1738391448978,-208.30070323,0.0001774,2]
[351174487,1738391448987,-524.75343864,0.0001774,2]
[351174488,1738391448998,-500.0,0.0001774,2]
[351174489,1738391449007,-412.67,0.0001774,2]
[351174490,1738391449017,-500.0,0.0001774,2]
[351174491,1738391449026,-500.0,0.0001774,2]
[351174492,1738391449036,-500.0,0.0001774,2]
[351174493,1738391449045,-500.0,0.0001774,2]
[351174494,1738391449055,-500.0,0.0001774,2]
[351174495,1738391449064,-500.0,0.0001774,2]
[351174496,1738391449074,-500.0,0.0001774,2]
[351174497,1738391449084,-500.0,0.0001774,2]
[351174498,1738391449093,-500.0,0.0001774,2]
[351174499,1738391449102,-358.67029061,0.0001774,2]
[351174500,1738391449112,-582.03278083,0.0001774,2]
[351174501,1738391449121,-500.0,0.0001774,2]
[351174502,1738391449131,-500.0,0.0001774,2]
[351174503,1738391449140,-500.0,0.0001774,2]
[351174504,1738391449149,-500.0,0.0001774,2]
[351174505,1738391449158,-500.0,0.0001774,2]
[351174506,1738391449167,-570.69,0.0001774,2]
[351174507,1738391449177,-500.0,0.0001774,2]
[351174508,1738391449186,-377.71076278,0.0001774,2]
[351174509,1738391449195,-500.0,0.0001774,2]
[351174510,1738391449204,-150.0,0.00017742,2]
[351174511,1738391449214,-35151.10667148,0.00017746,2]
[351174512,1738391449223,-358.5271036,0.00017753,2]
[351174513,1738391449232,-165.0,0.00017756,2]
[351174514,1738391449242,-165.32,0.00017756,2]
[351174515,1738391449252,-1000.0,0.00017761,2]
[351174516,1738391449261,-878.3302872,0.0001777,2]
[351174517,1738391449271,-150.0,0.0001778,2]
[351174518,1738391449280,-150.0,0.00017781,2]
[351174519,1738391449289,-864.035,0.00017787,2]
[351174520,1738391449299,-177.858,0.00017787,2]
[351174521,1738391449308,-150.0,0.00017799,2]
[351174522,1738391449317,-1000.0,0.000178,2]
[351174523,1738391449326,-150.0,0.00017807,2]
[351174524,1738391449336,-150.0,0.00017827,2]
[351174525,1738391449345,-358.5271036,0.00017836,2]
[351174526,1738391449355,-1000.0,0.00017838,2]
[351174527,1738391449364,-35151.10667148,0.00017851,2]
[351174528,1738391449375,-165.06727063,0.00017858,2]
[351174529,1738391449385,-239.67708954,0.0001786,2]
[351174530,1738391449395,-882.77,0.00017869,2]
[351174531,1738391449404,-2155.71918257,0.00017869,2]
[351174532,1738391449675,-3047.51081743,0.00017869,2]
[351174533,1738391449685,-1977.32,0.00017869,2]
[351174534,1738391449694,-2157.63,0.00017869,2]
[351174535,1738391449703,-500.0,0.00017869,2]
[351174536,1738391449713,-355.463185,0.00017869,2]
[351174537,1738391449723,-2215.63,0.00017869,2]
[351174538,1738391449733,-786.13,0.00017869,2]
[351174539,1738391449742,-500.0,0.00017869,2]
[351174540,1738391449752,-1279.88,0.00017869,2]
[351174541,1738391449761,-743.8,0.00017869,2]
[351174542,1738391449770,-500.0,0.00017869,2]
[351174543,1738391449779,-1586.14,0.00017869,2]
[351174544,1738391449789,-1473.65,0.00017869,2]
[351174545,1738391449798,-415.949143,0.00017869,2]
[351174546,1738391449808,-1213.95,0.00017869,2]
[351174547,1738391449817,-676.97,0.00017869,2]
[351174548,1738391449826,-2771.62,0.00017869,2]
[351174549,1738391449836,-2210.23,0.00017869,2]
[351174550,1738391449846,-1458.02,0.00017869,2]
[351174551,1738391449855,-614.42,0.00017869,2]
[351174552,1738391449865,-1087.78,0.00017869,2]
[351174553,1738391449874,-1881.23,0.00017869,2]
[351174554,1738391449884,-500.0,0.00017869,2]
[351174555,1738391449893,-1106.02,0.00017869,2]
[351174556,1738391449904,-3145.91,0.00017869,2]
[351174557,1738391449914,-1288.12,0.00017869,2]
[351174558,1738391449923,-2347.15,0.00017869,2]
[351174559,1738391449933,-500.0,0.00017869,2]
[351174560,1738391449942,-2931.91,0.00017869,2]
[351174561,1738391449951,-1733.43,0.00017869,2]
[351174562,1738391449961,-500.0,0.00017869,2]
[351174563,1738391449971,-500.0,0.00017869,2]
[351174564,1738391449980,-3827.77,0.00017869,2]
[351174565,1738391449990,-500.0,0.00017869,2]
[351174566,1738391450000,-2235.43,0.00017869,2]
[351174567,1738391450010,-812.03,0.00017869,2]
[351174568,1738391450020,-1503.15,0.00017869,2]
[351174569,1738391450030,-500.0,0.00017869,2]
[351174570,1738391450040,-1077.08,0.00017869,2]
[351174571,1738391450050,-2685.99,0.00017869,2]
[351174572,1738391450059,-1786.26,0.00017869,2]
[351174573,1738391450070,-1066.61,0.00017869,2]
[351174574,1738391450079,-1921.5,0.00017869,2]
[351174575,1738391450089,-1017.02089308,0.00017869,2]
[351174576,1738391450101,-69.58910692,0.00017869,2]
[351174577,1738391450110,-2749.03,0.00017869,2]
[351174578,1738391450119,-3880.19,0.00017869,2]
[351174579,1738391450130,-1708.1,0.00017869,2]
[351174580,1738391450140,-4474.46,0.00017869,2]
[351174581,1738391450149,-500.0,0.00017869,2]
[351174582,1738391450159,-906.15,0.00017869,2]
[351174583,1738391450170,-1197.79,0.00017869,2]
[351174584,1738391450180,-500.0,0.00017869,2]